bitfinex-derivatives/quotes_BNBF0:USTF0_20250128
["timestamp","ask_amount","ask_price","bid_price","bid_amount"]
[1738075368576,0.29806259,671.0,669.44,1.85639073]
[1738075368771,0.27407652,670.99,669.44,1.85639073]
[1738075368976,0.29807147,670.98,669.44,1.85639073]
[1738075369177,0.27407652,670.97,669.44,1.85639073]
[1738075369378,0.57218878,670.96,669.44,1.85639073]
[1738075369578,0.57219322,670.95,669.44,1.85639073]
[1738075369872,0.57219766,670.94,669.44,1.85639073]
[1738075370078,0.57220211,670.93,669.44,1.85639073]
[1738075370277,0.57220655,670.92,669.44,1.85639073]
[1738075370479,0.57221099,670.91,669.5,1.10830987]
[1738075370672,0.57221544,670.9,669.5,1.10830987]
[1738075370978,0.29811146,670.89,669.5,1.10830987]
[1738075373082,0.29811146,670.89,669.72,1.10830987]
[1738075373383,0.27407905,670.88,669.72,1.10830987]
[1738075373881,0.29812035,670.87,669.72,1.10830987]
[1738075374182,0.27407905,670.86,669.72,1.10830987]
[1738075374375,0.29812035,670.87,669.72,1.10830987]
[1738075374579,0.27410892,670.86,669.72,1.10830987]
[1738075374880,0.29812923,670.85,669.72,1.10830987]
[1738075376479,0.29812923,670.85,669.75,1.10830987]
[1738075379784,0.29812923,670.85,669.77,1.10830987]
[1738075382381,0.29812923,670.85,669.67,1.10830987]
[1738075385884,0.29812923,670.85,669.54,1.55718052]
[1738075385885,0.29812923,670.85,669.78,1.10830987]
[1738075388485,0.29812923,670.85,669.88,1.10830987]
[1738075393192,0.29812923,670.85,669.84,1.10830987]
[1738075394189,0.29812923,670.85,669.64,1.55710504]
[1738075396896,0.29812923,670.85,669.98,1.11614115]
[1738075400000,0.29812923,670.85,669.65,0.72237492]
[1738075400001,0.29812923,670.85,669.91,1.11614115]
[1738075403902,1.1098186,671.19,669.91,1.11614115]
[1738075407404,1.55660008,671.34,670.23,1.11614115]
[1738075407601,0.2739209,671.33,670.23,1.11614115]
[1738075408507,1.55660008,671.34,670.23,1.11614115]
[1738075408709,0.2739229,671.33,670.23,1.11614115]
[1738075410209,0.2739229,671.33,670.11,1.11614115]
[1738075412912,0.2739229,671.33,670.04,1.11614115]
[1738075413911,0.29792051,671.32,670.04,1.11614115]
[1738075414112,0.2739229,671.31,670.04,1.11614115]
[1738075414612,0.29792051,671.32,670.04,1.11614115]
[1738075414813,0.27391461,671.31,670.04,1.11614115]
[1738075416316,0.27391763,671.3,670.04,1.11614115]
[1738075416511,0.27391763,671.29,670.04,1.11614115]
[1738075416706,0.27391763,671.28,670.04,1.11614115]
[1738075416907,0.27391763,671.27,670.04,1.11614115]
[1738075417111,0.27391763,671.31,670.04,1.11614115]
[1738075417313,0.27391763,671.3,670.04,1.11614115]
[1738075417511,0.29792051,671.32,670.04,1.11614115]
[1738075418714,0.29792051,671.32,670.05,0.29848518]
[1738075419216,0.29792051,671.32,670.07,1.11614115]
[1738075422416,0.29792051,671.32,670.05,0.29848518]
[1738075440330,0.29792051,671.32,670.29,1.11614115]
[1738075444435,0.29792051,671.32,670.16,1.11614115]
[1738075447531,0.29792051,671.32,670.05,0.29848518]
[1738075449837,0.29792051,671.32,670.07,1.11614115]
[1738075452339,0.29792051,671.32,670.09,1.11614115]
[1738075453744,0.27394117,671.31,670.09,1.11614115]
[1738075453944,0.29792939,671.3,670.09,1.11614115]
[1738075454145,0.27393348,671.29,670.09,1.11614115]
[1738075455644,0.27393348,671.29,670.2,1.11614115]
[1738075457548,0.27394424,671.28,670.2,1.11614115]
[1738075457746,0.27394424,671.29,670.2,1.11614115]
[1738075457946,0.27394424,671.28,670.2,1.11614115]
[1738075458148,0.57188694,671.27,670.2,1.11614115]
[1738075458347,0.27394424,671.26,670.2,1.11614115]
[1738075458746,0.27394424,671.26,670.28,1.11614115]
[1738075459149,0.27394262,671.25,670.28,1.11614115]
[1738075459347,0.27394262,671.24,670.28,1.11614115]
[1738075459653,0.27394262,671.23,670.28,1.11614115]
[1738075459842,0.27394262,671.22,670.28,1.11614115]
[1738075460045,0.27394262,671.26,670.28,1.11614115]
[1738075460245,0.27394262,671.25,670.28,1.11614115]
[1738075460448,0.27394262,671.26,670.28,1.11614115]
[1738075460650,0.27394262,671.25,670.28,1.11614115]
[1738075460845,0.27394561,671.24,670.28,1.11614115]
[1738075461050,0.27394561,671.26,670.28,1.11614115]
[1738075462150,0.27394561,671.26,670.31,1.11614115]
[1738075462352,0.29795158,671.25,670.31,1.11614115]
[1738075462551,0.27394561,671.24,670.31,1.11614115]
[1738075462852,0.29796046,671.23,670.31,1.11614115]
[1738075465052,0.29796046,671.23,670.06,0.72182529]
[1738075465053,0.29796046,671.23,670.23,1.11614115]
[1738075467955,0.29796046,671.23,670.24,1.11614115]
[1738075470558,0.29796046,671.23,670.05,0.29848518]
[1738075471959,0.29796046,671.23,669.9,1.11614115]
[1738075473060,0.27405937,671.22,669.9,1.11614115]
[1738075473662,0.29796046,671.23,669.9,1.11614115]
[1738075473961,0.27406746,671.22,669.84,1.11614115]
[1738075474260,0.29797377,671.2,669.84,1.11614115]
[1738075474559,0.27406746,671.19,669.84,1.11614115]
[1738075474761,0.29798265,671.18,669.84,1.11614115]
[1738075474958,0.27406746,671.17,669.84,1.11614115]
[1738075475163,0.29799153,671.16,669.84,1.11614115]
[1738075475359,0.27405407,671.15,669.84,1.11614115]
[1738075475554,0.29800041,671.14,669.84,1.11614115]
[1738075475759,0.27405407,671.13,669.84,1.11614115]
[1738075475958,0.29800929,671.12,669.84,1.11614115]
[1738075476160,0.27405407,671.11,669.84,1.11614115]
[1738075476762,0.29801817,671.1,669.84,1.11614115]
[1738075477062,0.27405407,671.09,669.84,1.11614115]
[1738075477255,0.27405407,671.09,669.8,1.55693088]
[1738075477256,0.27405407,671.09,669.85,1.11614115]
[1738075477458,0.29802706,671.08,669.85,1.11614115]
[1738075477656,0.27407074,671.07,669.85,1.11614115]
[1738075477961,0.29803594,671.06,669.85,1.11614115]
[1738075478162,0.27407074,671.05,669.85,1.11614115]
[1738075478458,0.29804482,671.04,669.85,1.11614115]
[1738075478658,0.27407074,671.03,669.85,1.11614115]
[1738075478855,0.2980537,671.02,669.85,1.11614115]
[1738075479057,0.27407074,671.01,669.85,1.11614115]
[1738075479260,0.29806259,671.0,669.85,1.11614115]
[1738075479460,0.27407074,670.99,669.85,1.11614115]
[1738075479660,0.29807147,670.98,669.85,1.11614115]
[1738075479861,0.27407074,670.97,669.85,1.11614115]
[1738075480464,0.29808036,670.96,669.73,1.11614115]
[1738075480660,0.27407074,670.95,669.73,1.11614115]
[1738075480860,0.29808924,670.94,669.73,1.11614115]
[1738075482359,0.27408765,670.93,669.73,1.11614115]
[1738075482560,0.29809813,670.92,669.73,1.11614115]
[1738075483167,0.27409998,670.91,669.73,1.11614115]
[1738075483465,0.29810702,670.9,669.73,1.11614115]
[1738075483666,0.29810702,670.9,669.64,1.11614115]
[1738075486566,0.29810702,670.9,669.3,1.11614115]
[1738075486567,0.29810702,670.9,669.53,1.11614115]
[1738075489767,0.29810702,670.9,668.89,4.70292667]
[1738075489768,0.29810702,670.9,669.54,1.11614115]
[1738075490771,0.27409068,670.89,669.54,1.11614115]
[1738075491371,0.2981159,670.88,669.54,1.11614115]
[1738075491572,0.27409068,670.87,669.54,1.11614115]
[1738075491765,0.29812479,670.86,669.54,1.11614115]
[1738075492570,0.27412202,670.85,669.54,1.11614115]
[1738075492865,0.27412202,670.85,669.56,1.11614115]
[1738075492866,0.29813368,670.84,669.56,1.11614115]
[1738075493069,0.27412202,670.83,669.56,1.11614115]
[1738075494073,0.57226014,670.83,669.56,1.11614115]
[1738075494266,0.57226459,670.82,669.56,1.11614115]
[1738075494467,0.27412202,670.81,669.56,1.11614115]
[1738075494866,0.29815146,670.8,669.56,1.11614115]
[1738075495068,0.27412202,670.79,669.56,1.11614115]
[1738075495569,1.55768004,670.78,669.56,1.11614115]
[1738075495874,1.55768004,670.78,669.53,1.55766842]
[1738075495875,0.2741513,670.77,669.53,1.55766842]
[1738075497369,0.29816924,670.76,669.53,1.55766842]
[1738075497574,0.2741513,670.75,669.53,1.55766842]
[1738075497775,0.29817813,670.74,669.53,1.55766842]
[1738075497974,0.2741513,670.73,669.53,1.55766842]
[1738075498175,0.29818702,670.72,669.53,1.55766842]
[1738075501380,0.29818702,670.72,669.54,0.29871254]
[1738075501681,1.1098186,671.26,669.54,0.29871254]
[1738075501883,1.55712826,671.14,669.54,0.29871254]
[1738075502073,1.1098186,671.26,669.54,0.29871254]
[1738075502279,1.55696571,671.24,669.54,0.29871254]
[1738075502674,0.57193998,671.25,669.54,0.29871254]
[1738075502675,0.29795158,671.25,669.54,0.29871254]
[1738075504882,0.29795158,671.25,669.9,1.11614115]
[1738075507985,1.1098186,671.68,669.9,1.11614115]
[1738075508282,1.85373317,671.67,669.9,1.11614115]
[1738075508781,1.85373317,671.67,669.55,0.71909855]
[1738075508782,1.85373317,671.67,670.0,1.11614115]
[1738075511085,1.85373317,671.67,669.72,1.5559563]
[1738075511086,0.27384356,671.66,669.77,1.11614115]
[1738075513985,0.27384356,671.66,669.72,1.5559563]
[1738075514383,0.27385533,671.65,669.72,1.5559563]
[1738075514690,0.27385533,671.64,669.72,1.5559563]
[1738075514988,1.85373317,671.67,669.72,1.5559563]
[1738075514989,0.27385533,671.63,669.72,1.5559563]
[1738075515188,0.27385533,671.62,669.72,1.5559563]
[1738075515387,1.85373317,671.67,669.72,1.5559563]
[1738075515388,0.27385533,671.61,669.72,1.5559563]
[1738075515583,0.27385533,671.66,669.72,1.5559563]
[1738075515783,0.27385533,671.65,669.72,1.5559563]
[1738075516182,0.27385533,671.64,669.72,1.5559563]
[1738075516386,0.27385533,671.63,669.72,1.5559563]
[1738075516587,0.27385533,671.66,669.72,1.5559563]
[1738075516783,0.27385533,671.65,669.72,1.5559563]
[1738075516993,0.27385533,671.66,669.72,1.5559563]
[1738075517191,0.27385533,671.65,669.72,1.5559563]
[1738075517384,0.27385533,671.64,669.72,1.5559563]
[1738075517589,0.27385533,671.66,669.72,1.5559563]
[1738075517790,0.27384397,671.65,669.72,1.5559563]
[1738075517984,0.27384397,671.66,669.72,1.5559563]
[1738075518188,0.27384397,671.65,669.72,1.5559563]
[1738075518389,0.27384397,671.64,669.72,1.5559563]
[1738075518591,0.27384397,671.63,669.72,1.5559563]
[1738075518790,0.27384397,671.62,669.72,1.5559563]
[1738075518991,0.27384397,671.61,669.72,1.5559563]
[1738075519192,0.27384397,671.66,669.72,1.5559563]
[1738075519392,0.29776527,671.67,669.72,1.5559563]
[1738075519594,1.55622303,671.65,669.72,1.5559563]
[1738075519788,0.27385833,671.64,669.72,1.5559563]
[1738075520298,0.27385833,671.64,669.74,0.29862334]
[1738075520686,1.55622303,671.65,669.74,0.29862334]
[1738075520886,0.29778743,671.62,669.74,0.29862334]
[1738075521593,0.27382541,671.61,669.74,0.29862334]
[1738075523095,0.27381024,671.6,669.74,0.29862334]
[1738075523294,0.29778743,671.62,669.74,0.29862334]
[1738075523295,0.27381024,671.59,669.74,0.29862334]
[1738075523594,0.27381024,671.58,669.74,0.29862334]
[1738075523893,0.27381024,671.57,669.74,0.29862334]
[1738075524094,0.27381024,671.61,669.74,0.29862334]
[1738075524295,0.27381024,671.6,669.74,0.29862334]
[1738075524499,0.27381024,671.61,669.74,0.29862334]
[1738075524693,0.29778743,671.62,669.74,0.29862334]
[1738075524991,0.27383166,671.61,669.74,0.29862334]
[1738075526998,0.29780074,671.59,669.74,0.29862334]
[1738075527197,0.27383166,671.58,669.74,0.29862334]
[1738075528296,0.29780961,671.57,669.74,0.29862334]
[1738075530099,0.27381112,671.56,669.74,0.29862334]
[1738075530703,0.27381112,671.56,669.76,1.11614115]
[1738075531195,0.29780961,671.57,669.76,1.11614115]
[1738075532004,0.27380235,671.56,669.76,1.11614115]
[1738075533800,0.27380235,671.56,670.12,1.11614115]
[1738075534097,0.2738067,671.55,670.12,1.11614115]
[1738075534294,0.2738067,671.56,670.12,1.11614115]
[1738075534498,0.2738067,671.55,670.12,1.11614115]
[1738075534703,0.2738067,671.54,670.12,1.11614115]
[1738075534902,0.2738067,671.56,670.12,1.11614115]
[1738075535105,0.2738067,671.55,670.12,1.11614115]
[1738075535297,0.2738067,671.56,670.12,1.11614115]
[1738075535501,0.29780961,671.57,670.12,1.11614115]
[1738075535502,0.2738067,671.55,670.12,1.11614115]
[1738075535704,0.2738067,671.56,670.12,1.11614115]
[1738075535908,0.2738067,671.55,670.13,0.29844955]
[1738075536104,0.2738067,671.54,670.13,0.29844955]
[1738075536405,0.2738067,671.53,670.13,0.29844955]
[1738075536597,0.2738067,671.53,670.3,1.11614115]
[1738075537401,0.27380187,671.52,670.3,1.11614115]
[1738075537596,0.29782291,671.54,670.3,1.11614115]
[1738075537597,0.27380187,671.53,670.3,1.11614115]
[1738075537802,0.27380187,671.52,670.3,1.11614115]
[1738075537998,0.29782291,671.54,670.3,1.11614115]
[1738075538205,0.27380526,671.53,670.3,1.11614115]
[1738075538997,0.29782291,671.54,670.3,1.11614115]
[1738075540004,0.29782291,671.54,670.55,1.11614115]
[1738075542508,0.29782291,671.54,670.14,0.71604047]
[1738075542509,0.29782291,671.54,670.58,1.11614115]
[1738075545809,0.29782291,671.54,670.59,1.11614115]
[1738075548914,0.29782291,671.54,670.22,1.11614115]
[1738075549721,0.27384061,671.53,670.22,1.11614115]
[1738075550010,0.29783178,671.52,670.22,1.11614115]
[1738075550211,0.27384061,671.51,670.22,1.11614115]
[1738075551917,0.27384061,671.51,670.19,1.11614115]
[1738075552617,0.29784065,671.5,670.19,1.11614115]
[1738075552918,0.27384061,671.49,670.19,1.11614115]
[1738075553116,0.29784952,671.48,670.19,1.11614115]
[1738075553313,0.27384061,671.47,670.19,1.11614115]
[1738075553516,0.29785839,671.46,670.19,1.11614115]
[1738075553818,0.27384061,671.45,670.19,1.11614115]
[1738075554414,0.27384061,671.45,670.13,0.29844955]
[1738075554415,0.57176772,671.44,670.13,0.29844955]
[1738075554713,0.57177215,671.43,670.13,0.29844955]
[1738075554916,0.57177659,671.42,670.13,0.29844955]
[1738075555117,0.57178102,671.41,670.13,0.29844955]
[1738075555317,0.57178546,671.4,670.13,0.29844955]
[1738075555514,0.5717899,671.39,670.13,0.29844955]
[1738075555715,0.27390071,671.38,670.13,0.29844955]
[1738075556011,0.29789832,671.37,670.13,0.29844955]
[1738075556416,0.27390277,671.36,670.13,0.29844955]
[1738075556616,0.2979072,671.35,670.13,0.29844955]
[1738075557119,0.2739139,671.34,670.13,0.29844955]
[1738075558721,0.29791607,671.33,670.13,0.29844955]
[1738075558919,0.2739139,671.32,670.13,0.29844955]
[1738075559420,0.29791607,671.33,670.13,0.29844955]
[1738075560618,0.27390686,671.32,670.13,0.29844955]
[1738075561039,0.29792495,671.31,670.13,0.29844955]
[1738075561922,0.29792495,671.31,669.95,1.11614115]
[1738075563024,0.29792495,671.31,669.71,1.11614115]
[1738075563523,1.5566465,671.3,669.71,1.11614115]
[1738075565625,1.5566465,671.3,668.87,2.75104024]
[1738075565626,1.5566465,671.3,669.51,1.11614115]
[1738075566222,1.5566465,671.3,669.52,0.29872147]
[1738075568027,0.29793382,671.29,669.52,0.29872147]
[1738075568821,0.29793382,671.29,669.53,1.55685542]
[1738075570226,0.29793382,671.29,669.7,1.11614115]
[1738075570730,0.29793382,671.29,669.71,0.29863672]
[1738075572629,0.29793382,671.29,669.77,1.11614115]
[1738075575431,0.29793382,671.29,669.78,0.29860551]
[1738075582546,0.29793382,671.29,670.19,1.11614115]
[1738075585649,0.29793382,671.29,670.13,1.11614115]
[1738075587150,0.27396008,671.28,670.13,1.11614115]
[1738075587349,0.29793382,671.29,670.13,1.11614115]
[1738075587550,0.27396113,671.28,670.13,1.11614115]
[1738075588148,0.27396113,671.28,669.94,1.11614115]
[1738075590449,0.29793382,671.29,669.94,1.11614115]
[1738075590650,0.27402204,671.28,669.94,1.11614115]
[1738075590851,0.27402204,671.28,669.81,1.11614115]
[1738075591150,1.55684962,671.27,669.81,1.11614115]
[1738075591346,0.27402204,671.26,669.81,1.11614115]
[1738075592947,1.55684962,671.27,669.81,1.11614115]
[1738075593552,0.27400273,671.26,669.81,1.11614115]
[1738075593946,0.27400273,671.26,669.78,0.29860551]
[1738075594349,1.55684962,671.27,669.78,0.29860551]
[1738075594550,0.27401532,671.25,669.78,0.29860551]
[1738075594750,0.27401532,671.24,669.78,0.29860551]
[1738075594951,0.27401532,671.26,669.78,0.29860551]
[1738075595148,1.55684962,671.27,669.78,0.29860551]
[1738075595347,0.27400522,671.26,669.78,0.29860551]
[1738075600256,0.27400522,671.25,669.78,0.29860551]
[1738075600455,0.27400522,671.24,669.78,0.29860551]
[1738075600655,1.55684962,671.27,669.78,0.29860551]
[1738075600656,0.27400522,671.23,669.78,0.29860551]
[1738075600851,0.27400522,671.22,669.78,0.29860551]
[1738075601058,0.27400522,671.21,669.78,0.29860551]
[1738075601351,0.27408982,671.2,669.78,0.29860551]
[1738075601556,0.27408982,671.19,669.78,0.29860551]
[1738075601756,0.27408982,671.18,669.78,0.29860551]
[1738075601957,0.27408982,671.17,669.78,0.29860551]
[1738075602160,0.27408982,671.16,669.78,0.29860551]
[1738075602351,0.27408982,671.15,669.78,0.29860551]
[1738075602657,0.27408982,671.14,669.78,0.29860551]
[1738075602858,0.27408982,671.13,669.78,0.29860551]
[1738075603059,0.27408982,671.12,669.78,0.29860551]
[1738075603253,0.27408982,671.11,669.78,0.29860551]
[1738075603458,0.27408982,671.1,669.78,0.29860551]
[1738075603659,0.27408982,671.09,669.78,0.29860551]
[1738075603861,0.27408982,671.08,669.78,0.29860551]
[1738075604059,0.27408982,671.07,669.78,0.29860551]
[1738075604264,0.27408982,671.19,669.78,0.29860551]
[1738075604463,0.27408982,671.18,669.78,0.29860551]
[1738075604666,0.27408982,671.17,669.78,0.29860551]
[1738075604964,0.27408982,671.16,669.78,0.29860551]
[1738075605165,0.27408982,671.19,669.78,0.29860551]
[1738075606564,0.27417858,671.18,669.33,1.11614115]
[1738075606765,0.27417858,671.17,669.33,1.11614115]
[1738075606962,0.27417858,671.16,669.33,1.11614115]
[1738075607162,0.27417858,671.15,669.33,1.11614115]
[1738075607363,0.27417858,671.14,669.33,1.11614115]
[1738075607568,0.27417858,671.19,669.33,1.11614115]
[1738075607869,0.27417858,671.18,669.33,1.11614115]
[1738075608061,0.27417858,671.19,669.33,1.11614115]
[1738075608259,1.55735473,671.2,669.33,1.11614115]
[1738075608260,0.27417858,671.18,669.33,1.11614115]
[1738075608466,0.27417858,671.19,669.33,1.11614115]
[1738075608897,0.27417858,671.19,669.08,1.11614115]
[1738075609069,0.27417858,671.19,669.09,0.29891344]
[1738075610769,0.27417858,671.18,669.09,0.29891344]
[1738075610970,0.27417858,671.17,669.09,0.29891344]
[1738075611170,1.55735473,671.2,669.09,0.29891344]
[1738075611171,0.27417858,671.16,669.09,0.29891344]
[1738075611372,0.27417858,671.15,669.09,0.29891344]
[1738075611568,0.27417858,671.14,669.09,0.29891344]
[1738075611769,0.27417858,671.13,669.1,1.55806943]
[1738075611969,0.27417858,671.12,669.1,1.55806943]
[1738075612166,0.27417858,671.11,669.1,1.55806943]
[1738075612368,0.27417858,671.1,669.1,1.55806943]
[1738075612571,1.55800548,671.12,669.1,1.55806943]
[1738075612572,0.27417858,671.09,669.1,1.55806943]
[1738075612770,0.27417858,671.08,669.1,1.55806943]
[1738075612972,0.27417858,671.07,669.1,1.55806943]
[1738075613173,0.27417858,671.06,669.1,1.55806943]
[1738075613367,1.55800548,671.12,669.1,1.55806943]
[1738075613570,0.27429701,671.11,669.1,1.55806943]
[1738075613773,0.27429701,671.1,669.1,1.55806943]
[1738075613968,0.27429701,671.09,669.1,1.55806943]
[1738075614171,0.27429701,671.08,669.1,1.55806943]
[1738075614372,0.27429701,671.07,669.1,1.55806943]
[1738075614570,0.27429701,671.06,669.1,1.55806943]
[1738075614768,0.27429701,671.05,669.1,1.55806943]
[1738075614971,0.27429701,671.04,669.1,1.55806943]
[1738075615172,0.27429003,671.03,669.1,1.55806943]
[1738075615369,0.27429003,671.02,669.1,1.55806943]
[1738075615570,0.27429003,671.01,669.1,1.55806943]
[1738075616073,0.29806703,670.99,669.1,1.55806943]
[1738075616275,0.27429003,670.98,669.1,1.55806943]
[1738075616771,0.29808036,670.96,669.1,1.55806943]
[1738075616976,0.27429003,670.95,669.1,1.55806943]
[1738075620270,0.29808036,670.96,669.1,1.55806943]
[1738075620476,0.27427759,670.95,669.1,1.55806943]
[1738075622579,1.55834269,670.94,669.1,1.55806943]
[1738075622779,0.27427759,670.93,669.1,1.55806943]
[1738075623583,1.55834269,670.94,669.1,1.55806943]
[1738075623780,0.27430392,670.93,669.1,1.55806943]
[1738075624081,0.27430392,670.92,669.1,1.55806943]
[1738075624482,0.27430392,670.91,669.1,1.55806943]
[1738075624681,0.27430392,670.9,669.1,1.55806943]
[1738075624878,0.27430392,670.89,669.1,1.55806943]
[1738075625075,0.27430392,670.93,669.09,0.29891344]
[1738075625280,0.27430392,670.92,669.09,0.29891344]
[1738075625580,0.27430392,670.91,669.09,0.29891344]
[1738075625776,0.27430392,670.9,669.09,0.29891344]
[1738075626084,0.27430392,670.89,669.09,0.29891344]
[1738075626281,0.27430392,670.88,669.09,0.29891344]
[1738075626481,0.27430392,670.87,669.09,0.29891344]
[1738075626683,0.27430392,670.86,669.09,0.29891344]
[1738075626881,0.27430392,670.85,669.09,0.29891344]
[1738075627083,0.27430392,670.84,669.09,0.29891344]
[1738075627382,0.27430392,670.83,669.09,0.29891344]
[1738075627579,0.27430392,670.82,669.09,0.29891344]
[1738075627784,0.27430392,670.81,669.09,0.29891344]
[1738075627984,0.27430392,670.8,669.09,0.29891344]
[1738075628187,0.27430392,670.79,669.09,0.29891344]
[1738075628386,0.27430392,670.78,669.09,0.29891344]
[1738075628586,0.27430392,670.77,669.09,0.29891344]
[1738075628886,0.27430392,670.76,669.09,0.29891344]
[1738075629085,0.27430392,670.75,669.09,0.29891344]
[1738075629285,0.27430392,670.74,669.09,0.29891344]
[1738075629486,0.27430392,670.73,669.09,0.29891344]
[1738075629787,0.27430392,670.72,669.09,0.29891344]
[1738075630085,0.27430392,670.71,669.09,0.29891344]
[1738075630286,0.27430392,670.7,669.09,0.29891344]
[1738075630785,0.27430392,670.69,669.09,0.29891344]
[1738075630978,0.27430392,670.68,669.09,0.29891344]
[1738075631180,0.27430392,670.67,669.09,0.29891344]
[1738075631383,0.27430392,670.66,669.09,0.29891344]
[1738075631583,0.27430392,670.65,669.09,0.29891344]
[1738075631791,0.27430392,670.64,669.09,0.29891344]
[1738075631987,0.27430392,670.63,669.09,0.29891344]
[1738075632187,1.55834269,670.94,669.09,0.29891344]
[1738075632386,0.27437005,670.93,669.09,0.29891344]
[1738075632686,1.83318974,670.92,669.09,0.29891344]
[1738075632886,0.27437005,670.91,669.09,0.29891344]
[1738075633088,0.27437005,670.9,669.09,0.29891344]
[1738075633288,0.27437005,670.89,669.09,0.29891344]
[1738075633482,0.27437005,670.88,669.09,0.29891344]
[1738075633686,0.27437005,670.87,669.09,0.29891344]
[1738075633883,1.55881969,670.92,669.09,0.29891344]
[1738075634186,0.29810702,670.9,669.09,0.29891344]
[1738075634382,0.27434133,670.89,669.09,0.29891344]
[1738075634583,0.29810702,670.9,669.09,0.29891344]
[1738075634584,0.27434133,670.88,669.09,0.29891344]
[1738075634794,0.27434133,670.87,669.09,0.29891344]
[1738075634995,0.29812923,670.85,669.09,0.29891344]
[1738075635196,0.27434133,670.84,669.09,0.29891344]
[1738075635397,0.29814257,670.82,669.09,0.29891344]
[1738075635796,0.27434133,670.81,669.09,0.29891344]
[1738075635998,0.2981559,670.79,669.09,0.29891344]
[1738075636298,0.27434133,670.78,669.09,0.29891344]
[1738075636596,0.29816924,670.76,669.09,0.29891344]
[1738075636796,0.27434133,670.75,669.09,0.29891344]
[1738075637497,0.27430463,670.74,669.09,0.29891344]
[1738075637689,0.27430463,670.73,669.09,0.29891344]
[1738075637894,0.27430463,670.72,669.09,0.29891344]
[1738075638095,0.27430463,670.71,669.09,0.29891344]
[1738075638396,0.27430463,670.7,669.09,0.29891344]
[1738075638592,0.27430463,670.69,669.09,0.29891344]
[1738075638796,0.27430463,670.68,669.09,0.29891344]
[1738075638997,0.57251388,670.67,669.09,0.29891344]
[1738075639297,0.27430463,670.66,669.09,0.29891344]
[1738075639496,0.27430463,670.65,669.09,0.29891344]
[1738075639699,0.29820925,670.67,669.09,1.41505459]
[1738075639700,0.27430463,670.64,669.09,1.41505459]
[1738075639891,0.27430463,670.63,669.09,1.41505459]
[1738075640097,0.27430463,670.62,669.09,1.41505459]
[1738075640296,0.29820925,670.67,669.09,1.41505459]
[1738075640495,0.27427149,670.66,669.09,1.41505459]
[1738075640799,0.27428684,670.65,669.09,1.41505459]
[1738075640999,0.29822704,670.63,669.09,1.41505459]
[1738075641198,0.27428684,670.62,669.09,1.41505459]
[1738075641400,0.29824038,670.6,669.09,1.41505459]
[1738075642100,0.27430732,670.59,669.09,1.41505459]
[1738075642395,0.29825372,670.57,669.09,0.29891344]
[1738075643000,1.55855207,670.56,669.09,0.29891344]
[1738075643194,0.29826706,670.54,669.09,0.29891344]
[1738075657004,0.29826706,670.54,669.09,0.29891344]
[1738075661305,0.2742974,670.53,669.09,0.29891344]
[1738075661609,0.27431525,670.52,669.09,0.29891344]
[1738075661804,0.27431525,670.51,669.09,0.29891344]
[1738075662005,0.27431525,670.53,669.09,0.29891344]
[1738075662307,0.27431525,670.52,669.09,0.29891344]
[1738075662502,0.29826706,670.54,669.09,0.29891344]
[1738075662503,0.27431525,670.51,669.09,0.29891344]
[1738075662708,0.27431525,670.5,669.09,0.29891344]
[1738075662905,0.57260456,670.49,669.14,1.11614115]
[1738075663110,0.27431525,670.48,669.14,1.11614115]
[1738075663311,0.27431388,670.47,669.14,1.11614115]
[1738075663512,0.57261653,670.46,669.14,1.11614115]
[1738075663810,0.57261216,670.45,669.14,1.11614115]
[1738075664009,0.29831155,670.44,669.14,1.11614115]
[1738075665613,0.29831155,670.44,669.09,1.85748296]
[1738075667512,0.29831155,670.44,669.09,0.29891344]
[1738075672116,0.29831155,670.44,669.17,1.11614115]
[1738075672312,1.55797061,670.98,669.17,1.11614115]
[1738075672513,0.29807591,670.97,669.17,1.11614115]
[1738075676026,1.1098186,671.04,669.17,1.11614115]
[1738075676525,1.55704698,671.46,669.52,1.11614115]
[1738075676727,0.29786283,671.45,669.52,1.11614115]
[1738075678827,0.273973,671.44,669.52,1.11614115]
[1738075679130,0.273973,671.43,669.52,1.11614115]
[1738075679332,0.273973,671.42,669.31,1.11614115]
[1738075679529,0.273973,671.41,669.31,1.11614115]
[1738075679725,0.273973,671.4,669.31,1.11614115]
[1738075679926,0.273973,671.39,669.31,1.11614115]
[1738075680223,0.273973,671.38,669.31,1.11614115]
[1738075680631,0.273973,671.37,669.31,1.11614115]
[1738075680830,0.273973,671.44,669.31,1.11614115]
[1738075681127,0.273973,671.43,669.31,1.11614115]
[1738075681328,0.273973,671.44,669.31,1.11614115]
[1738075681532,0.273973,671.43,669.31,1.11614115]
[1738075681731,0.273973,671.42,669.31,1.11614115]
[1738075682031,0.273973,671.41,669.31,1.11614115]
[1738075682431,0.273973,671.4,669.31,1.11614115]
[1738075682634,0.273973,671.44,669.26,1.55650725]
[1738075682932,0.273973,671.43,669.26,1.55650725]
[1738075683132,0.273973,671.42,669.26,1.55650725]
[1738075683433,0.273973,671.41,669.26,1.55650725]
[1738075683630,0.273973,671.4,669.26,1.55650725]
[1738075683831,0.273973,671.39,669.26,1.55650725]
[1738075684027,0.273973,671.38,669.26,1.55650725]
[1738075684332,0.273973,671.37,669.26,1.55650725]
[1738075684527,0.273973,671.36,669.26,1.55650725]